[Event "*** Titled Tuesday Blitz"]
[Site "Chess.com"]
[Date "2020.05.19"]
[Round "6"]
[White "SaqoChess_Twitch"]
[Black "Chessialist"]
[Result "0-1"]
[WhiteElo "2394"]
[BlackElo "2561"]
[TimeControl "180+1"]
[EndTime "13:09:10 PDT"]
[Termination "Chessialist won by resignation"]

1. d4 {[%clk 0:03:00.9]} 1... Nf6 {[%clk 0:02:59.6]} 2. c4 {[%clk 0:02:59.6]}
2... e6 {[%clk 0:02:59.9]} 3. Nc3 {[%clk 0:02:59.4]} 3... d5 {[%clk 0:03:00.6]}
4. Bg5 {[%clk 0:02:56.3]} 4... Be7 {[%clk 0:03:00.6]} 5. e3 {[%clk 0:02:56.7]}
5... O-O {[%clk 0:03:00.7]} 6. Nf3 {[%clk 0:02:57.2]} 6... h6 {[%clk 0:03:00.8]}
7. Bh4 {[%clk 0:02:56.9]} 7... Ne4 {[%clk 0:03:01]} 8. Bxe7 {[%clk 0:02:56.2]}
8... Qxe7 {[%clk 0:03:01.9]} 9. cxd5 {[%clk 0:02:56.8]} 9... Nxc3 {[%clk
0:03:02.2]} 10. bxc3 {[%clk 0:02:57.7]} 10... exd5 {[%clk 0:03:02.9]} 11. Bd3
{[%clk 0:02:57.9]} 11... c5 {[%clk 0:03:02.8]} 12. O-O {[%clk 0:02:57.8]} 12...
Nc6 {[%clk 0:03:02.9]} 13. Qd2 {[%clk 0:02:49.3]} 13... Bg4 {[%clk 0:03:00.3]}
14. Be2 {[%clk 0:02:46.6]} 14... Rfd8 {[%clk 0:02:52.2]} 15. Rab1 {[%clk
0:02:45.2]} 15... b6 {[%clk 0:02:51.4]} 16. h3 {[%clk 0:02:43.2]} 16... Bf5
{[%clk 0:02:51.1]} 17. Bd3 {[%clk 0:02:37.1]} 17... Be4 {[%clk 0:02:48.2]} 18.
Qe2 {[%clk 0:02:29.2]} 18... Rac8 {[%clk 0:02:38.3]} 19. Nd2 {[%clk 0:02:27.8]}
19... Bxd3 {[%clk 0:02:38]} 20. Qxd3 {[%clk 0:02:28.7]} 20... Na5 {[%clk
0:02:35.8]} 21. Rbc1 {[%clk 0:02:21.6]} 21... Re8 {[%clk 0:02:26.6]} 22. Rfe1
{[%clk 0:02:20.4]} 22... Nb7 {[%clk 0:02:19.7]} 23. Qf5 {[%clk 0:02:14.8]} 23...
Qe6 {[%clk 0:02:18]} 24. Qxe6 {[%clk 0:02:14.7]} 24... fxe6 {[%clk 0:02:18]} 25.
e4 {[%clk 0:02:13.2]} 25... Nd6 {[%clk 0:02:16.2]} 26. e5 {[%clk 0:02:08.4]}
26... Nb5 {[%clk 0:02:16.1]} 27. a4 {[%clk 0:02:08]} 27... Nc7 {[%clk
0:02:13.1]} 28. f4 {[%clk 0:02:03.3]} 28... Na6 {[%clk 0:02:11.6]} 29. g4 {[%clk
0:02:01.4]} 29... cxd4 {[%clk 0:02:10.3]} 30. cxd4 {[%clk 0:02:02.3]} 30... Nb4
{[%clk 0:02:11.2]} 31. Rf1 {[%clk 0:01:53.8]} 31... g6 {[%clk 0:02:05.6]} 32.
Rxc8 {[%clk 0:01:36.7]} 32... Rxc8 {[%clk 0:02:05]} 33. Nf3 {[%clk 0:01:35.5]}
33... Rc3 {[%clk 0:01:57.9]} 34. Kg2 {[%clk 0:01:33.9]} 34... Nc2 {[%clk
0:01:55.7]} 35. Kf2 {[%clk 0:01:20.9]} 35... Rc4 {[%clk 0:01:47.4]} 36. Rc1
{[%clk 0:01:17.4]} 36... Kf7 {[%clk 0:01:34.2]} 37. Nd2 {[%clk 0:00:45.6]} 37...
Rc6 {[%clk 0:01:26.9]} 38. Nb3 {[%clk 0:00:40]} 38... Nxd4 {[%clk 0:01:26]} 39.
Rb1 {[%clk 0:00:28.2]} 39... Nxb3 {[%clk 0:01:17.5]} 40. Rxb3 {[%clk 0:00:29.1]}
40... Rc4 {[%clk 0:01:18.2]} 41. a5 {[%clk 0:00:18.2]} 41... Rxf4+ {[%clk
0:01:17.8]} 42. Kg3 {[%clk 0:00:18.8]} 42... Re4 {[%clk 0:01:17.4]} 43. axb6
{[%clk 0:00:19.3]} 43... axb6 {[%clk 0:01:18.3]} 44. Rf3+ {[%clk 0:00:18.2]}
44... Ke7 {[%clk 0:01:15.7]} 45. Rf6 {[%clk 0:00:18.1]} 45... g5 {[%clk
0:01:08.5]} 46. Rxh6 {[%clk 0:00:17.6]} 46... Rxe5 {[%clk 0:01:08.7]} 47. Rh7+
{[%clk 0:00:17.8]} 47... Kd6 {[%clk 0:01:06.3]} 48. Rg7 {[%clk 0:00:16.7]} 48...
d4 {[%clk 0:01:04.7]} 49. h4 {[%clk 0:00:16.4]} 49... gxh4+ {[%clk 0:01:05]} 50.
Kxh4 {[%clk 0:00:17.3]} 50... d3 {[%clk 0:01:05.4]} 51. Rg8 {[%clk 0:00:17.8]}
51... Rd5 {[%clk 0:01:05.7]} 52. Rd8+ {[%clk 0:00:11.3]} 52... Ke7 {[%clk
0:01:05.8]} 53. Ra8 {[%clk 0:00:10.1]} 53... d2 {[%clk 0:01:05.6]} 54. Ra7+
{[%clk 0:00:11]} 54... Kd6 {[%clk 0:01:05.4]} 55. Ra1 {[%clk 0:00:11.9]} 55...
d1=Q {[%clk 0:01:05.3]} 56. Rxd1 {[%clk 0:00:12.8]} 56... Rxd1 {[%clk
0:01:05.8]} 57. Kg5 {[%clk 0:00:13.7]} 57... Rg1 {[%clk 0:01:05.7]} 0-1

[Event "*** Titled Tuesday Blitz"]
[Site "Chess.com"]
[Date "2020.05.19"]
[Round "6"]
[White "antoszu"]
[Black "SameerMujumdar"]
[Result "0-1"]
[WhiteElo "2535"]
[BlackElo "2288"]
[TimeControl "180+1"]
[EndTime "13:09:11 PDT"]
[Termination "SameerMujumdar won by resignation"]

1. d4 {[%clk 0:03:00.9]} 1... Nf6 {[%clk 0:02:59]} 2. c4 {[%clk 0:03:01.1]} 2...
g6 {[%clk 0:02:59.4]} 3. Nc3 {[%clk 0:03:00.9]} 3... Bg7 {[%clk 0:02:59.9]} 4.
e4 {[%clk 0:03:00.9]} 4... d6 {[%clk 0:03:00.5]} 5. Be2 {[%clk 0:03:01.5]} 5...
O-O {[%clk 0:03:00.9]} 6. Bg5 {[%clk 0:03:01.8]} 6... Na6 {[%clk 0:02:52.3]} 7.
Qd2 {[%clk 0:02:59.8]} 7... Qe8 {[%clk 0:02:46.9]} 8. Nf3 {[%clk 0:02:58.6]}
8... e5 {[%clk 0:02:44.6]} 9. d5 {[%clk 0:02:58.7]} 9... Nc5 {[%clk 0:02:44]}
10. Qc2 {[%clk 0:02:50.8]} 10... a5 {[%clk 0:02:42.1]} 11. O-O {[%clk 0:02:42]}
11... h6 {[%clk 0:02:35.4]} 12. Be3 {[%clk 0:02:40]} 12... b6 {[%clk 0:02:35.9]}
13. Nd2 {[%clk 0:02:38.5]} 13... Ng4 {[%clk 0:02:04]} 14. Bxg4 {[%clk
0:02:32.3]} 14... Bxg4 {[%clk 0:02:04.9]} 15. f3 {[%clk 0:02:32.7]} 15... Bd7
{[%clk 0:02:05.5]} 16. b3 {[%clk 0:02:32.6]} 16... f5 {[%clk 0:02:05.7]} 17. a3
{[%clk 0:02:30.3]} 17... h5 {[%clk 0:01:53.2]} 18. b4 {[%clk 0:02:24.6]} 18...
Nb7 {[%clk 0:01:44]} 19. Nb3 {[%clk 0:02:13.1]} 19... Kh7 {[%clk 0:01:42.4]} 20.
Qd2 {[%clk 0:01:55.8]} 20... f4 {[%clk 0:01:34.1]} 21. Bf2 {[%clk 0:01:55.9]}
21... g5 {[%clk 0:01:34.6]} 22. c5 {[%clk 0:01:50.7]} 22... a4 {[%clk
0:01:29.6]} 23. c6 {[%clk 0:01:51.1]} 23... axb3 {[%clk 0:01:29.3]} 24. cxd7
{[%clk 0:01:51.6]} 24... Qxd7 {[%clk 0:01:28.9]} 25. Qb2 {[%clk 0:01:51.5]}
25... g4 {[%clk 0:01:26.5]} 26. Bh4 {[%clk 0:01:48.4]} 26... Bf6 {[%clk
0:01:26]} 27. Bxf6 {[%clk 0:01:45.7]} 27... Rxf6 {[%clk 0:01:26.9]} 28. Qxb3
{[%clk 0:01:46.3]} 28... Rg8 {[%clk 0:01:26.7]} 29. Ne2 {[%clk 0:01:42.5]} 29...
Rfg6 {[%clk 0:01:21.4]} 30. Rf2 {[%clk 0:01:42.3]} 30... Nd8 {[%clk 0:01:13.9]}
31. Rc1 {[%clk 0:01:28.3]} 31... h4 {[%clk 0:01:04.3]} 32. fxg4 {[%clk 0:01:21]}
32... Rxg4 {[%clk 0:01:02.5]} 33. h3 {[%clk 0:01:20.4]} 33... R4g7 {[%clk
0:00:59.8]} 34. Qf3 {[%clk 0:01:19.2]} 34... Kh6 {[%clk 0:00:55.8]} 35. Nxf4
{[%clk 0:01:03]} 35... exf4 {[%clk 0:00:54.9]} 36. Qxf4+ {[%clk 0:01:03.9]}
36... Kh5 {[%clk 0:00:45.5]} 37. Qf3+ {[%clk 0:00:46]} 37... Kh6 {[%clk
0:00:45.4]} 38. Qf4+ {[%clk 0:00:46.1]} 38... Kh5 {[%clk 0:00:44.6]} 39. Qf3+
{[%clk 0:00:18.8]} 39... Kh6 {[%clk 0:00:43.7]} 40. Qf6+ {[%clk 0:00:18.2]}
40... Rg6 {[%clk 0:00:39.9]} 41. Qxh4+ {[%clk 0:00:18.2]} 41... Kg7 {[%clk
0:00:40.4]} 42. Rcf1 {[%clk 0:00:18.2]} 42... Rh8 {[%clk 0:00:32]} 43. Qf4
{[%clk 0:00:17.1]} 43... Qxh3 {[%clk 0:00:25.5]} 44. Qf7+ {[%clk 0:00:13.4]}
44... Nxf7 {[%clk 0:00:24.9]} 45. Rxf7+ {[%clk 0:00:14.3]} 45... Kh6 {[%clk
0:00:19.8]} 0-1

[Event "*** Titled Tuesday Blitz"]
[Site "Chess.com"]
[Date "2020.05.19"]
[Round "6"]
[White "GMartin_Petrov"]
[Black "santosalberto1987"]
[Result "0-1"]
[WhiteElo "2601"]
[BlackElo "2485"]
[TimeControl "180+1"]
[EndTime "13:09:12 PDT"]
[Termination "santosalberto1987 won by resignation"]

1. e4 {[%clk 0:03:00.9]} 1... e6 {[%clk 0:02:59.6]} 2. d4 {[%clk 0:02:59.8]}
2... d5 {[%clk 0:03:00.1]} 3. Nc3 {[%clk 0:03:00.4]} 3... Nf6 {[%clk 0:03:00.1]}
4. e5 {[%clk 0:03:00.6]} 4... Nfd7 {[%clk 0:03:00.3]} 5. f4 {[%clk 0:03:01.1]}
5... c5 {[%clk 0:03:00.4]} 6. Nf3 {[%clk 0:03:00.2]} 6... Nc6 {[%clk 0:03:00.9]}
7. Be3 {[%clk 0:02:59]} 7... Qb6 {[%clk 0:02:58.7]} 8. Qd2 {[%clk 0:02:43.7]}
8... Qxb2 {[%clk 0:02:58]} 9. Rb1 {[%clk 0:02:42.9]} 9... Qa3 {[%clk 0:02:58]}
10. Bb5 {[%clk 0:02:14.2]} 10... c4 {[%clk 0:02:53]} 11. f5 {[%clk 0:01:42.7]}
11... Bb4 {[%clk 0:02:50.1]} 12. Rxb4 {[%clk 0:01:42.1]} 12... Qxb4 {[%clk
0:02:50.1]} 13. O-O {[%clk 0:01:35.3]} 13... h6 {[%clk 0:02:30]} 14. fxe6 {[%clk
0:01:22.8]} 14... fxe6 {[%clk 0:02:30.9]} 15. Nh4 {[%clk 0:01:23.1]} 15... Nf8
{[%clk 0:02:26.4]} 16. a3 {[%clk 0:01:04.4]} 16... Qe7 {[%clk 0:02:22.5]} 17.
Qf2 {[%clk 0:00:58.2]} 17... Bd7 {[%clk 0:02:22.4]} 18. Na4 {[%clk 0:00:52]}
18... a6 {[%clk 0:02:14.9]} 19. Nc5 {[%clk 0:00:39.2]} 19... O-O-O {[%clk
0:02:04.9]} 20. Nxa6 {[%clk 0:00:25.6]} 20... bxa6 {[%clk 0:02:02.9]} 21. Bxa6+
{[%clk 0:00:26.5]} 21... Kb8 {[%clk 0:01:46.3]} 22. Qd2 {[%clk 0:00:25.2]} 22...
Ka7 {[%clk 0:01:46.3]} 23. Bb5 {[%clk 0:00:24.8]} 23... Rb8 {[%clk 0:01:23.4]}
24. Bxc6 {[%clk 0:00:24.3]} 24... Bxc6 {[%clk 0:01:24.3]} 25. Qa5+ {[%clk
0:00:23.9]} 25... Kb7 {[%clk 0:01:24.7]} 26. Rb1+ {[%clk 0:00:09.3]} 26... Kc8
{[%clk 0:01:24.9]} 27. Qa6+ {[%clk 0:00:10.2]} 27... Bb7 {[%clk 0:01:21.8]} 28.
Qa7 {[%clk 0:00:09.6]} 28... Qc7 {[%clk 0:01:17.4]} 29. Nf3 {[%clk 0:00:08.7]}
29... Nd7 {[%clk 0:01:16.6]} 30. Bd2 {[%clk 0:00:07]} 30... Bc6 {[%clk 0:01:12]}
31. Qa6+ {[%clk 0:00:07.2]} 31... Bb7 {[%clk 0:00:53.2]} 32. Qa7 {[%clk
0:00:06.6]} 32... Qc6 {[%clk 0:00:49]} 33. Ba5 {[%clk 0:00:06.3]} 33... Qa6
{[%clk 0:00:47.6]} 34. Rxb7 {[%clk 0:00:03.8]} 34... Qxb7 {[%clk 0:00:46.6]} 35.
Qxb7+ {[%clk 0:00:02.1]} 35... Rxb7 {[%clk 0:00:46.5]} 36. Nh4 {[%clk
0:00:02.3]} 36... Rb1+ {[%clk 0:00:44.5]} 37. Kf2 {[%clk 0:00:01.8]} 37... Rb2
{[%clk 0:00:45.1]} 38. Ke2 {[%clk 0:00:02.7]} 38... Rxc2+ {[%clk 0:00:45.2]} 39.
Ke3 {[%clk 0:00:03.6]} 39... Ra2 {[%clk 0:00:45.2]} 40. Ng6 {[%clk 0:00:04.5]}
40... Re8 {[%clk 0:00:44.4]} 41. Kf4 {[%clk 0:00:05.4]} 41... Rxa3 {[%clk
0:00:44]} 42. Bb4 {[%clk 0:00:06.2]} 42... Rb3 {[%clk 0:00:43.4]} 43. Bd6 {[%clk
0:00:07.1]} 43... c3 {[%clk 0:00:42.8]} 44. Ke3 {[%clk 0:00:06.1]} 44... Rb2
{[%clk 0:00:42]} 45. Kd3 {[%clk 0:00:06]} 45... Rxg2 {[%clk 0:00:42.1]} 46. Kxc3
{[%clk 0:00:06.1]} 46... Rxg6 {[%clk 0:00:41.8]} 0-1

[Event "*** Titled Tuesday Blitz"]
[Site "Chess.com"]
[Date "2020.05.19"]
[Round "6"]
[White "UmutErdemGunduz"]
[Black "ChessQueen"]
[Result "0-1"]
[WhiteElo "2460"]
[BlackElo "2608"]
[TimeControl "180+1"]
[EndTime "13:09:12 PDT"]
[Termination "ChessQueen won on time"]

1. e4 {[%clk 0:03:00.9]} 1... c6 {[%clk 0:02:59.1]} 2. d4 {[%clk 0:02:59.5]}
2... d5 {[%clk 0:02:58.6]} 3. Nc3 {[%clk 0:03:00.1]} 3... dxe4 {[%clk
0:02:58.5]} 4. Nxe4 {[%clk 0:03:01]} 4... Nf6 {[%clk 0:02:58.9]} 5. Nxf6+ {[%clk
0:03:01.2]} 5... exf6 {[%clk 0:02:59.4]} 6. c3 {[%clk 0:03:02.1]} 6... Bd6
{[%clk 0:02:59.4]} 7. Bd3 {[%clk 0:03:02.6]} 7... O-O {[%clk 0:02:59.4]} 8. Qc2
{[%clk 0:03:03.2]} 8... Re8+ {[%clk 0:02:58.3]} 9. Ne2 {[%clk 0:03:03.5]} 9...
h5 {[%clk 0:02:58.6]} 10. h3 {[%clk 0:03:03]} 10... Nd7 {[%clk 0:02:57.3]} 11.
O-O {[%clk 0:03:00.3]} 11... h4 {[%clk 0:02:54.9]} 12. Bf4 {[%clk 0:02:49.6]}
12... Nf8 {[%clk 0:02:54.1]} 13. Bxd6 {[%clk 0:02:46.7]} 13... Qxd6 {[%clk
0:02:51.4]} 14. c4 {[%clk 0:02:45.3]} 14... Be6 {[%clk 0:02:38.8]} 15. Rad1
{[%clk 0:02:43.3]} 15... Rad8 {[%clk 0:02:37.8]} 16. Rfe1 {[%clk 0:02:42.2]}
16... Bc8 {[%clk 0:02:11.3]} 17. Nc3 {[%clk 0:02:35.9]} 17... Ne6 {[%clk
0:02:08.6]} 18. d5 {[%clk 0:02:16.4]} 18... Nf4 {[%clk 0:01:48.4]} 19. Bf5
{[%clk 0:01:55.8]} 19... Bxf5 {[%clk 0:01:38.1]} 20. Qxf5 {[%clk 0:01:56.7]}
20... Re5 {[%clk 0:01:37.3]} 21. Rxe5 {[%clk 0:01:48.4]} 21... Qxe5 {[%clk
0:01:37.2]} 22. Qxe5 {[%clk 0:01:31.2]} 22... fxe5 {[%clk 0:01:38.1]} 23. dxc6
{[%clk 0:01:31.1]} 23... Rxd1+ {[%clk 0:01:35.3]} 24. Nxd1 {[%clk 0:01:32]}
24... bxc6 {[%clk 0:01:35.7]} 25. Ne3 {[%clk 0:01:26.9]} 25... Nd3 {[%clk
0:01:26.1]} 26. b3 {[%clk 0:01:14.5]} 26... g6 {[%clk 0:01:26.5]} 27. Nc2 {[%clk
0:00:59]} 27... a5 {[%clk 0:01:22]} 28. a3 {[%clk 0:00:50.6]} 28... c5 {[%clk
0:01:19.3]} 29. Kf1 {[%clk 0:00:50.5]} 29... f5 {[%clk 0:01:16.4]} 30. Ke2
{[%clk 0:00:41.2]} 30... Nc1+ {[%clk 0:01:15.8]} 31. Kd2 {[%clk 0:00:37.6]}
31... Nxb3+ {[%clk 0:01:16.7]} 32. Kc3 {[%clk 0:00:38]} 32... Nd4 {[%clk
0:01:15.7]} 33. Ne3 {[%clk 0:00:37.7]} 33... Kf7 {[%clk 0:01:10.9]} 34. Nd5
{[%clk 0:00:36.7]} 34... Ke6 {[%clk 0:01:07.5]} 35. f3 {[%clk 0:00:31.5]} 35...
Kd6 {[%clk 0:01:02]} 36. Kd3 {[%clk 0:00:19]} 36... Ne6 {[%clk 0:01:01.5]} 37.
Kc3 {[%clk 0:00:18]} 37... e4 {[%clk 0:00:56.9]} 38. f4 {[%clk 0:00:15]} 38...
g5 {[%clk 0:00:57.3]} 39. fxg5 {[%clk 0:00:13.5]} 39... Nxg5 {[%clk 0:00:57.5]}
40. Kd2 {[%clk 0:00:12.7]} 40... Ke5 {[%clk 0:00:55.7]} 41. Ke3 {[%clk
0:00:10.8]} 41... Ne6 {[%clk 0:00:56.2]} 42. Ne7 {[%clk 0:00:06.8]} 42... f4+
{[%clk 0:00:56.2]} 43. Kf2 {[%clk 0:00:06.1]} 43... e3+ {[%clk 0:00:52.3]} 44.
Ke1 {[%clk 0:00:04.5]} 44... Ke4 {[%clk 0:00:43]} 45. Nc6 {[%clk 0:00:03.6]}
45... Nd4 {[%clk 0:00:40.5]} 46. Nxa5 {[%clk 0:00:03.4]} 46... Kd3 {[%clk
0:00:39.7]} 47. Nb7 {[%clk 0:00:02.7]} 47... Nc2+ {[%clk 0:00:39.9]} 0-1

[Event "*** Titled Tuesday Blitz"]
[Site "Chess.com"]
[Date "2020.05.19"]
[Round "6"]
[White "HouseOfDurin"]
[Black "aaronmaster123"]
[Result "0-1"]
[WhiteElo "1981"]
[BlackElo "2251"]
[TimeControl "180+1"]
[EndTime "13:09:12 PDT"]
[Termination "aaronmaster123 won on time"]

1. d4 {[%clk 0:03:00.9]} 1... Nf6 {[%clk 0:02:58.8]} 2. Bg5 {[%clk 0:03:00.5]}
2... e6 {[%clk 0:02:55.5]} 3. e4 {[%clk 0:02:59.9]} 3... h6 {[%clk 0:02:54.9]}
4. Bxf6 {[%clk 0:02:59.8]} 4... Qxf6 {[%clk 0:02:54]} 5. e5 {[%clk 0:03:00.4]}
5... Qe7 {[%clk 0:02:51.8]} 6. c3 {[%clk 0:03:00.2]} 6... d6 {[%clk 0:02:50.1]}
7. f4 {[%clk 0:02:54.4]} 7... dxe5 {[%clk 0:02:47.5]} 8. dxe5 {[%clk 0:02:54]}
8... g5 {[%clk 0:02:42.2]} 9. Nf3 {[%clk 0:02:42.7]} 9... Bg7 {[%clk 0:02:15.8]}
10. Qd2 {[%clk 0:02:16.7]} 10... g4 {[%clk 0:02:13.7]} 11. Nd4 {[%clk
0:02:12.3]} 11... Bd7 {[%clk 0:02:12]} 12. Be2 {[%clk 0:02:00.8]} 12... h5
{[%clk 0:02:10.2]} 13. Na3 {[%clk 0:01:52.1]} 13... Nc6 {[%clk 0:02:09.7]} 14.
Nab5 {[%clk 0:01:50.1]} 14... Nxd4 {[%clk 0:01:53.4]} 15. Nxc7+ {[%clk
0:01:39.1]} 15... Kd8 {[%clk 0:01:53.3]} 16. Nxa8 {[%clk 0:01:37.5]} 16... Nxe2
{[%clk 0:01:38.6]} 17. Qxe2 {[%clk 0:01:20.3]} 17... Kc8 {[%clk 0:01:36.6]} 18.
O-O-O {[%clk 0:01:15.6]} 18... Kb8 {[%clk 0:01:31.4]} 19. Qd3 {[%clk 0:01:04.3]}
19... Bc6 {[%clk 0:01:29]} 20. Rd2 {[%clk 0:00:41.5]} 20... Kxa8 {[%clk
0:01:26.4]} 21. Rhd1 {[%clk 0:00:41.4]} 21... Kb8 {[%clk 0:01:22.4]} 22. b4
{[%clk 0:00:28.2]} 22... a6 {[%clk 0:01:14.3]} 23. a3 {[%clk 0:00:24]} 23... Kc7
{[%clk 0:00:57.5]} 24. Kb2 {[%clk 0:00:19.6]} 24... h4 {[%clk 0:00:52.2]} 25.
Qc4 {[%clk 0:00:15.5]} 25... h3 {[%clk 0:00:43.3]} 26. g3 {[%clk 0:00:15.1]}
26... f6 {[%clk 0:00:28.2]} 27. Rd6 {[%clk 0:00:14.2]} 27... fxe5 {[%clk
0:00:26.2]} 28. Rxc6+ {[%clk 0:00:14]} 28... bxc6 {[%clk 0:00:25.1]} 29. Qxa6
{[%clk 0:00:14.1]} 29... Rb8 {[%clk 0:00:20.6]} 30. Qa5+ {[%clk 0:00:09.6]}
30... Rb6 {[%clk 0:00:15.9]} 31. fxe5 {[%clk 0:00:07.2]} 31... Qg5 {[%clk
0:00:10.9]} 32. Qa7+ {[%clk 0:00:05.7]} 32... Rb7 {[%clk 0:00:11]} 33. Rd7+
{[%clk 0:00:04.6]} 33... Kxd7 {[%clk 0:00:10.9]} 34. Qxb7+ {[%clk 0:00:05.1]}
34... Kd8 {[%clk 0:00:10]} 35. Qb8+ {[%clk 0:00:03.8]} 35... Ke7 {[%clk
0:00:10]} 36. Qd6+ {[%clk 0:00:03.8]} 36... Kf7 {[%clk 0:00:10.3]} 0-1

[Event "*** Titled Tuesday Blitz"]
[Site "Chess.com"]
[Date "2020.05.19"]
[Round "6"]
[White "Twitch_ElhamBlitz05"]
[Black "TST2014"]
[Result "1-0"]
[WhiteElo "2764"]
[BlackElo "2575"]
[TimeControl "180+1"]
[EndTime "13:09:14 PDT"]
[Termination "Twitch_ElhamBlitz05 won on time"]

1. e4 {[%clk 0:03:00.9]} 1... c5 {[%clk 0:02:58.7]} 2. Ne2 {[%clk 0:03:00.6]}
2... Nc6 {[%clk 0:02:58.4]} 3. Nbc3 {[%clk 0:03:00.6]} 3... d6 {[%clk 0:02:58]}
4. d4 {[%clk 0:03:01.1]} 4... cxd4 {[%clk 0:02:58.1]} 5. Nxd4 {[%clk 0:03:02]}
5... Nf6 {[%clk 0:02:58.5]} 6. f3 {[%clk 0:03:01.4]} 6... e5 {[%clk 0:02:58.1]}
7. Nb3 {[%clk 0:03:01.3]} 7... Be7 {[%clk 0:02:58.6]} 8. Be3 {[%clk 0:02:59.9]}
8... O-O {[%clk 0:02:58.6]} 9. Qd2 {[%clk 0:02:59.4]} 9... a5 {[%clk 0:02:58.8]}
10. Bb5 {[%clk 0:02:58.7]} 10... Be6 {[%clk 0:02:58.9]} 11. O-O-O {[%clk
0:02:57]} 11... Qb8 {[%clk 0:02:56.2]} 12. Kb1 {[%clk 0:02:40.3]} 12... Rd8
{[%clk 0:02:51.5]} 13. Bb6 {[%clk 0:02:26]} 13... Rd7 {[%clk 0:02:49.3]} 14. a4
{[%clk 0:02:03.3]} 14... d5 {[%clk 0:02:46.2]} 15. exd5 {[%clk 0:02:03.4]} 15...
Nxd5 {[%clk 0:02:45.9]} 16. Nxd5 {[%clk 0:02:03.8]} 16... Rxd5 {[%clk 0:02:45]}
17. Qe2 {[%clk 0:02:02.3]} 17... Bf6 {[%clk 0:02:25]} 18. Nc5 {[%clk 0:01:55.3]}
18... Rxd1+ {[%clk 0:02:21.2]} 19. Rxd1 {[%clk 0:01:54.4]} 19... Nd4 {[%clk
0:02:20.1]} 20. Rxd4 {[%clk 0:01:25.5]} 20... exd4 {[%clk 0:02:19]} 21. Nxe6
{[%clk 0:01:26.1]} 21... fxe6 {[%clk 0:02:04.2]} 22. Qxe6+ {[%clk 0:01:26.3]}
22... Kh8 {[%clk 0:02:04]} 23. Bd3 {[%clk 0:00:56.6]} 23... Qxh2 {[%clk
0:02:00.5]} 24. Qe4 {[%clk 0:00:56.5]} 24... Qh4 {[%clk 0:01:33]} 25. g4 {[%clk
0:00:38.8]} 25... g6 {[%clk 0:01:15.2]} 26. Bxd4 {[%clk 0:00:35.2]} 26... Rd8
{[%clk 0:01:00]} 27. Qe7 {[%clk 0:00:29]} 27... Qe1+ {[%clk 0:00:17.1]} 28. Qxe1
{[%clk 0:00:26.7]} 28... Rxd4 {[%clk 0:00:17.4]} 29. Qe6 {[%clk 0:00:21.6]}
29... Kg7 {[%clk 0:00:16.1]} 30. b3 {[%clk 0:00:09.4]} 30... Rd8 {[%clk
0:00:06.7]} 31. f4 {[%clk 0:00:08]} 31... Rf8 {[%clk 0:00:02.6]} 32. g5 {[%clk
0:00:06.7]} 32... Bc3 {[%clk 0:00:02.2]} 33. Qe4 {[%clk 0:00:05.3]} 1-0

[Event "*** Titled Tuesday Blitz"]
[Site "Chess.com"]
[Date "2020.05.19"]
[Round "6"]
[White "RobertoJBM"]
[Black "AlexTruskavetsky"]
[Result "0-1"]
[WhiteElo "2619"]
[BlackElo "2451"]
[TimeControl "180+1"]
[EndTime "13:09:14 PDT"]
[Termination "AlexTruskavetsky won by resignation"]

1. d4 {[%clk 0:03:00.9]} 1... g6 {[%clk 0:02:56.3]} 2. e4 {[%clk 0:03:00.5]}
2... Bg7 {[%clk 0:02:56.6]} 3. Nc3 {[%clk 0:03:00.6]} 3... d6 {[%clk 0:02:56.1]}
4. Be3 {[%clk 0:02:57.4]} 4... a6 {[%clk 0:02:55]} 5. h4 {[%clk 0:02:57]} 5...
h5 {[%clk 0:02:53.5]} 6. Qd2 {[%clk 0:02:55.9]} 6... b5 {[%clk 0:02:50.8]} 7. f3
{[%clk 0:02:55.4]} 7... Nf6 {[%clk 0:02:45.5]} 8. a4 {[%clk 0:02:49.4]} 8... b4
{[%clk 0:02:40.8]} 9. Nd1 {[%clk 0:02:49.4]} 9... Nbd7 {[%clk 0:02:38.5]} 10.
Qxb4 {[%clk 0:02:39.3]} 10... O-O {[%clk 0:02:32.8]} 11. Qd2 {[%clk 0:02:38.9]}
11... Rb8 {[%clk 0:02:17.1]} 12. b3 {[%clk 0:02:24.5]} 12... c5 {[%clk
0:02:15.9]} 13. Ne2 {[%clk 0:02:22.9]} 13... Qc7 {[%clk 0:01:56.2]} 14. Rc1
{[%clk 0:02:07]} 14... cxd4 {[%clk 0:01:41.9]} 15. Nxd4 {[%clk 0:02:05.1]} 15...
Nc5 {[%clk 0:01:39.5]} 16. Bh6 {[%clk 0:01:51.5]} 16... Ncxe4 {[%clk 0:01:19.3]}
17. fxe4 {[%clk 0:01:51.1]} 17... Nxe4 {[%clk 0:01:19.8]} 18. Qe3 {[%clk
0:01:51.3]} 18... Bxh6 {[%clk 0:01:19.8]} 19. Qxh6 {[%clk 0:01:50.3]} 19... e5
{[%clk 0:01:15.1]} 20. Nf3 {[%clk 0:01:47.1]} 20... Qa5+ {[%clk 0:00:38.7]} 21.
c3 {[%clk 0:01:17.9]} 21... Qc5 {[%clk 0:00:38.3]} 22. b4 {[%clk 0:01:13]} 22...
Qd5 {[%clk 0:00:32.1]} 23. Qe3 {[%clk 0:01:03.4]} 23... Ng3 {[%clk 0:00:26.9]}
24. Rg1 {[%clk 0:00:59.5]} 24... Bg4 {[%clk 0:00:20.7]} 25. Nd2 {[%clk
0:00:30.3]} 25... Nf5 {[%clk 0:00:18.4]} 26. Qe4 {[%clk 0:00:23]} 26... Qa2
{[%clk 0:00:17.9]} 27. a5 {[%clk 0:00:16.1]} 27... Rfe8 {[%clk 0:00:15.5]} 28.
Bc4 {[%clk 0:00:16.1]} 28... Qa4 {[%clk 0:00:13.8]} 29. Qc2 {[%clk 0:00:13.8]}
29... Qd7 {[%clk 0:00:13.1]} 30. Qd3 {[%clk 0:00:12.9]} 30... e4 {[%clk
0:00:12.4]} 31. Qd5 {[%clk 0:00:11.8]} 31... e3 {[%clk 0:00:11.1]} 32. Nf1
{[%clk 0:00:10.8]} 32... e2 {[%clk 0:00:09.4]} 33. Nf2 {[%clk 0:00:07.6]} 33...
exf1=Q+ {[%clk 0:00:09]} 34. Kd2 {[%clk 0:00:07.6]} 34... Qxf2+ {[%clk
0:00:08.3]} 0-1